Workbook

Sheet Kuueelarve kokkuvõte
B1: ETTEVÕTTE NIMI
B2: KUUEELARVE | E2: Kuupäev
B4: EELARVE SUMMAD | C4: HINNANGULINE | D4: TEGELIK | E4: ERINEVUS
B5: Tulu | C5: =Sissetulek[[#Totals],[HINNANGULINE]] -> 63,300.00 | D5: =Sissetulek[[#Totals],[TEGELIK]] -> 57,450.00 | E5: =Kokkuvõtted[[#This Row],[TEGELIK]]-Kokkuvõtted[[#This Row],[HINNANGULINE]] -> -5,850.00
B6: Kulud | C6: =Tegevuskulud[[#Totals],[HINNANGULINE]]+TöötajategaSeotudKulud[[#Totals],[HINNANGULINE]] -> 54,500.00 | D6: =Tegevuskulud[[#Totals],[TEGELIK]]+TöötajategaSeotudKulud[[#Totals],[TEGELIK]] -> 49,630.00 | E6: =Kokkuvõtted[[#This Row],[TEGELIK]]-Kokkuvõtted[[#This Row],[HINNANGULINE]] -> -4,870.00
B7: Saldo (tulud miinus kulud) | C7: =C5-C6 -> 8,800.00 | D7: =D5-D6 -> 7,820.00 | E7: =Kokkuvõtted[[#Totals],[TEGELIK]]-Kokkuvõtted[[#Totals],[HINNANGULINE]] -> -980.00
B9: Selles lahtris on diagramm „Eelarve kokkuvõte“. Allasuvas tabelis 5PeamistKulu värskendatakse automaatselt viit peamist tegevuskulu.
B10: MILLISED ON MINU VIIS PEAMIST TEGEVUSKULU?
B11: KULU | C11: SUMMA | D11: % KULUDEST | E11: 15% SOODUSTUS
B12: =INDEX(Tegevuskulud[],MATCH(_5PeamistKulu[[#This Row],[SUMMA]],Tegevuskulud[5 PEAMISE SUMMA],0),1) -> Hooldus ja remont | C12: =LARGE(Tegevuskulud[5 PEAMISE SUMMA],1) -> 4,600.00 | D12: =_5PeamistKulu[[#This Row],[SUMMA]]/$D$6 -> 9.3% | E12: =_5PeamistKulu[[#This Row],[SUMMA]]*0.15 -> 690.00
B13: =INDEX(Tegevuskulud[],MATCH(_5PeamistKulu[[#This Row],[SUMMA]],Tegevuskulud[5 PEAMISE SUMMA],0),1) -> Üür või hüpoteek | C13: =LARGE(Tegevuskulud[5 PEAMISE SUMMA],2) -> 4,500.00 | D13: =_5PeamistKulu[[#This Row],[SUMMA]]/$D$6 -> 9.1% | E13: =_5PeamistKulu[[#This Row],[SUMMA]]*0.15 -> 675.00
B14: =INDEX(Tegevuskulud[],MATCH(_5PeamistKulu[[#This Row],[SUMMA]],Tegevuskulud[5 PEAMISE SUMMA],0),1) -> Tarbed | C14: =LARGE(Tegevuskulud[5 PEAMISE SUMMA],3) -> 4,500.00 | D14: =_5PeamistKulu[[#This Row],[SUMMA]]/$D$6 -> 9.1% | E14: =_5PeamistKulu[[#This Row],[SUMMA]]*0.15 -> 675.00
B15: =INDEX(Tegevuskulud[],MATCH(_5PeamistKulu[[#This Row],[SUMMA]],Tegevuskulud[5 PEAMISE SUMMA],0),1) -> Maksud | C15: =LARGE(Tegevuskulud[5 PEAMISE SUMMA],4) -> 3,200.00 | D15: =_5PeamistKulu[[#This Row],[SUMMA]]/$D$6 -> 6.4% | E15: =_5PeamistKulu[[#This Row],[SUMMA]]*0.15 -> 480.00
B16: =INDEX(Tegevuskulud[],MATCH(_5PeamistKulu[[#This Row],[SUMMA]],Tegevuskulud[5 PEAMISE SUMMA],0),1) -> Reklaam | C16: =LARGE(Tegevuskulud[5 PEAMISE SUMMA],5) -> 2,500.00 | D16: =_5PeamistKulu[[#This Row],[SUMMA]]/$D$6 -> 5.0% | E16: =_5PeamistKulu[[#This Row],[SUMMA]]*0.15 -> 375.00
B17: Kogusumma | C17: =SUBTOTAL(109,_5PeamistKulu[SUMMA]) -> 19,300.00 | D17: =SUBTOTAL(109,_5PeamistKulu[% KULUDEST]) -> 38.9% | E17: =SUBTOTAL(109,_5PeamistKulu[15% SOODUSTUS]) -> 2,895.00

Sheet Tulu
B1: =ETTEVÕTTE_NIMI -> ETTEVÕTTE NIMI
B2: =EELARVE_pealkiri -> KUUEELARVE
B4: TULU | C4: HINNANGULINE | D4: TEGELIK | E4: 5 PEAMISE SUMMA | F4: ERINEVUS
B5: Netomüük | C5: 60,000.00 | D5: 54,000.00 | E5: =Sissetulek[[#This Row],[TEGELIK]]+(10^-6)*ROW(Sissetulek[[#This Row],[TEGELIK]]) -> 54,000.00 | F5: =Sissetulek[[#This Row],[TEGELIK]]-Sissetulek[[#This Row],[HINNANGULINE]] -> -6,000.00
B6: Intressitulu | C6: 3,000.00 | D6: 3,000.00 | E6: =Sissetulek[[#This Row],[TEGELIK]]+(10^-6)*ROW(Sissetulek[[#This Row],[TEGELIK]]) -> 3,000.00 | F6: =Sissetulek[[#This Row],[TEGELIK]]-Sissetulek[[#This Row],[HINNANGULINE]] -> 0.00
B7: Varade müük (kasum/kahjum) | C7: 300.00 | D7: 450.00 | E7: =Sissetulek[[#This Row],[TEGELIK]]+(10^-6)*ROW(Sissetulek[[#This Row],[TEGELIK]]) -> 450.00 | F7: =Sissetulek[[#This Row],[TEGELIK]]-Sissetulek[[#This Row],[HINNANGULINE]] -> 150.00
B8: Tulud kokku | C8: =SUBTOTAL(109,Sissetulek[HINNANGULINE]) -> 63,300.00 | D8: =SUBTOTAL(109,Sissetulek[TEGELIK]) -> 57,450.00 | F8: =SUBTOTAL(109,Sissetulek[ERINEVUS]) -> -5,850.00

Sheet Töötajatega seotud kulud
B1: =ETTEVÕTTE_NIMI -> ETTEVÕTTE NIMI
B2: =EELARVE_pealkiri -> KUUEELARVE
B4: TÖÖTAJATEGA SEOTUD KULUD | C4: HINNANGULINE | D4: TEGELIK | E4: 5 PEAMISE SUMMA | F4: ERINEVUS
B5: Palk | C5: 9,500.00 | D5: 9,600.00 | E5: =TöötajategaSeotudKulud[[#This Row],[TEGELIK]]+(10^-6)*ROW(TöötajategaSeotudKulud[[#This Row],[TEGELIK]]) -> 9,600.00 | F5: =TöötajategaSeotudKulud[[#This Row],[HINNANGULINE]]-TöötajategaSeotudKulud[[#This Row],[TEGELIK]] -> -100.00
B6: Töötajate hüvitised | C6: 4,000.00 | D6: 0.00 | E6: =TöötajategaSeotudKulud[[#This Row],[TEGELIK]]+(10^-6)*ROW(TöötajategaSeotudKulud[[#This Row],[TEGELIK]]) -> 0.00 | F6: =TöötajategaSeotudKulud[[#This Row],[HINNANGULINE]]-TöötajategaSeotudKulud[[#This Row],[TEGELIK]] -> 4,000.00
B7: Komisjonitasu | C7: 5,000.00 | D7: 4,500.00 | E7: =TöötajategaSeotudKulud[[#This Row],[TEGELIK]]+(10^-6)*ROW(TöötajategaSeotudKulud[[#This Row],[TEGELIK]]) -> 4,500.00 | F7: =TöötajategaSeotudKulud[[#This Row],[HINNANGULINE]]-TöötajategaSeotudKulud[[#This Row],[TEGELIK]] -> 500.00
B8: Töötajatega seotud kulud kokku | C8: =SUBTOTAL(109,TöötajategaSeotudKulud[HINNANGULINE]) -> 18,500.00 | D8: =SUBTOTAL(109,TöötajategaSeotudKulud[TEGELIK]) -> 14,100.00 | F8: =SUBTOTAL(109,TöötajategaSeotudKulud[ERINEVUS]) -> 4,400.00

Sheet Tegevuskulud
B1: =ETTEVÕTTE_NIMI -> ETTEVÕTTE NIMI
B2: =EELARVE_pealkiri -> KUUEELARVE
B4: TEGEVUSKULUD | C4: HINNANGULINE | D4: TEGELIK | E4: 5 PEAMISE SUMMA | F4: ERINEVUS
B5: Halvad laenud | C5: 2,000.00 | D5: 2,000.00 | E5: =Tegevuskulud[[#This Row],[TEGELIK]]+(10^-6)*ROW(Tegevuskulud[[#This Row],[TEGELIK]]) -> 2,000.00 | F5: =Tegevuskulud[[#This Row],[HINNANGULINE]]-Tegevuskulud[[#This Row],[TEGELIK]] -> 0.00
B6: Hooldus ja remont | C6: 4,500.00 | D6: 4,600.00 | E6: =Tegevuskulud[[#This Row],[TEGELIK]]+(10^-6)*ROW(Tegevuskulud[[#This Row],[TEGELIK]]) -> 4,600.00 | F6: =Tegevuskulud[[#This Row],[HINNANGULINE]]-Tegevuskulud[[#This Row],[TEGELIK]] -> -100.00
B7: Intress | C7: 2,000.00 | D7: 2,200.00 | E7: =Tegevuskulud[[#This Row],[TEGELIK]]+(10^-6)*ROW(Tegevuskulud[[#This Row],[TEGELIK]]) -> 2,200.00 | F7: =Tegevuskulud[[#This Row],[HINNANGULINE]]-Tegevuskulud[[#This Row],[TEGELIK]] -> -200.00
B8: Juriidilised ja auditikulud | C8: 1,000.00 | D8: 800.00 | E8: =Tegevuskulud[[#This Row],[TEGELIK]]+(10^-6)*ROW(Tegevuskulud[[#This Row],[TEGELIK]]) -> 800.00 | F8: =Tegevuskulud[[#This Row],[HINNANGULINE]]-Tegevuskulud[[#This Row],[TEGELIK]] -> 200.00
B9: Kindlustus | C9: 1,300.00 | D9: 1,275.00 | E9: =Tegevuskulud[[#This Row],[TEGELIK]]+(10^-6)*ROW(Tegevuskulud[[#This Row],[TEGELIK]]) -> 1,275.00 | F9: =Tegevuskulud[[#This Row],[HINNANGULINE]]-Tegevuskulud[[#This Row],[TEGELIK]] -> 25.00
B10: Kommunaalid | C10: 1,400.00 | D10: 1,385.00 | E10: =Tegevuskulud[[#This Row],[TEGELIK]]+(10^-6)*ROW(Tegevuskulud[[#This Row],[TEGELIK]]) -> 1,385.00 | F10: =Tegevuskulud[[#This Row],[HINNANGULINE]]-Tegevuskulud[[#This Row],[TEGELIK]] -> 15.00
B11: Kontoritarbed | C11: 800.00 | D11: 750.00 | E11: =Tegevuskulud[[#This Row],[TEGELIK]]+(10^-6)*ROW(Tegevuskulud[[#This Row],[TEGELIK]]) -> 750.00 | F11: =Tegevuskulud[[#This Row],[HINNANGULINE]]-Tegevuskulud[[#This Row],[TEGELIK]] -> 50.00
B12: Kulum | C12: 1,000.00 | D12: 1,000.00 | E12: =Tegevuskulud[[#This Row],[TEGELIK]]+(10^-6)*ROW(Tegevuskulud[[#This Row],[TEGELIK]]) -> 1,000.00 | F12: =Tegevuskulud[[#This Row],[HINNANGULINE]]-Tegevuskulud[[#This Row],[TEGELIK]] -> 0.00
B13: Liikmemaksud ja tellimused | C13: 500.00 | D13: 525.00 | E13: =Tegevuskulud[[#This Row],[TEGELIK]]+(10^-6)*ROW(Tegevuskulud[[#This Row],[TEGELIK]]) -> 525.00 | F13: =Tegevuskulud[[#This Row],[HINNANGULINE]]-Tegevuskulud[[#This Row],[TEGELIK]] -> -25.00
B14: Maksud | C14: 3,000.00 | D14: 3,200.00 | E14: =Tegevuskulud[[#This Row],[TEGELIK]]+(10^-6)*ROW(Tegevuskulud[[#This Row],[TEGELIK]]) -> 3,200.00 | F14: =Tegevuskulud[[#This Row],[HINNANGULINE]]-Tegevuskulud[[#This Row],[TEGELIK]] -> -200.00
B15: Muu | C15: 1,000.00 | D15: 750.00 | E15: =Tegevuskulud[[#This Row],[TEGELIK]]+(10^-6)*ROW(Tegevuskulud[[#This Row],[TEGELIK]]) -> 750.00 | F15: =Tegevuskulud[[#This Row],[HINNANGULINE]]-Tegevuskulud[[#This Row],[TEGELIK]] -> 250.00
B16: Müügikulud | C16: 350.00 | D16: 400.00 | E16: =Tegevuskulud[[#This Row],[TEGELIK]]+(10^-6)*ROW(Tegevuskulud[[#This Row],[TEGELIK]]) -> 400.00 | F16: =Tegevuskulud[[#This Row],[HINNANGULINE]]-Tegevuskulud[[#This Row],[TEGELIK]] -> -50.00
B17: Postikulu | C17: 400.00 | D17: 350.00 | E17: =Tegevuskulud[[#This Row],[TEGELIK]]+(10^-6)*ROW(Tegevuskulud[[#This Row],[TEGELIK]]) -> 350.00 | F17: =Tegevuskulud[[#This Row],[HINNANGULINE]]-Tegevuskulud[[#This Row],[TEGELIK]] -> 50.00
B18: Reklaam | C18: 3,000.00 | D18: 2,500.00 | E18: =Tegevuskulud[[#This Row],[TEGELIK]]+(10^-6)*ROW(Tegevuskulud[[#This Row],[TEGELIK]]) -> 2,500.00 | F18: =Tegevuskulud[[#This Row],[HINNANGULINE]]-Tegevuskulud[[#This Row],[TEGELIK]] -> 500.00
B19: Skonto | C19: 1,500.00 | D19: 2,175.00 | E19: =Tegevuskulud[[#This Row],[TEGELIK]]+(10^-6)*ROW(Tegevuskulud[[#This Row],[TEGELIK]]) -> 2,175.00 | F19: =Tegevuskulud[[#This Row],[HINNANGULINE]]-Tegevuskulud[[#This Row],[TEGELIK]] -> -675.00
B20: Tarbed | C20: 5,000.00 | D20: 4,500.00 | E20: =Tegevuskulud[[#This Row],[TEGELIK]]+(10^-6)*ROW(Tegevuskulud[[#This Row],[TEGELIK]]) -> 4,500.00 | F20: =Tegevuskulud[[#This Row],[HINNANGULINE]]-Tegevuskulud[[#This Row],[TEGELIK]] -> 500.00
B21: Tarne ja hoiustamine | C21: 900.00 | D21: 840.00 | E21: =Tegevuskulud[[#This Row],[TEGELIK]]+(10^-6)*ROW(Tegevuskulud[[#This Row],[TEGELIK]]) -> 840.00 | F21: =Tegevuskulud[[#This Row],[HINNANGULINE]]-Tegevuskulud[[#This Row],[TEGELIK]] -> 60.00
B22: Tarnekulud | C22: 2,000.00 | D22: 1,500.00 | E22: =Tegevuskulud[[#This Row],[TEGELIK]]+(10^-6)*ROW(Tegevuskulud[[#This Row],[TEGELIK]]) -> 1,500.00 | F22: =Tegevuskulud[[#This Row],[HINNANGULINE]]-Tegevuskulud[[#This Row],[TEGELIK]] -> 500.00
B23: Telefon | C23: 250.00 | D23: 280.00 | E23: =Tegevuskulud[[#This Row],[TEGELIK]]+(10^-6)*ROW(Tegevuskulud[[#This Row],[TEGELIK]]) -> 280.00 | F23: =Tegevuskulud[[#This Row],[HINNANGULINE]]-Tegevuskulud[[#This Row],[TEGELIK]] -> -30.00
B24: Üür või hüpoteek | C24: 4,100.00 | D24: 4,500.00 | E24: =Tegevuskulud[[#This Row],[TEGELIK]]+(10^-6)*ROW(Tegevuskulud[[#This Row],[TEGELIK]]) -> 4,500.00 | F24: =Tegevuskulud[[#This Row],[HINNANGULINE]]-Tegevuskulud[[#This Row],[TEGELIK]] -> -400.00
B25: Tegevuskulud kokku | C25: =SUBTOTAL(109,Tegevuskulud[HINNANGULINE]) -> 36,000.00 | D25: =SUBTOTAL(109,Tegevuskulud[TEGELIK]) -> 35,530.00 | F25: =SUBTOTAL(109,Tegevuskulud[ERINEVUS]) -> 470.00
